fUST/lending_fUST_20240928
["ID","MTS","AMOUNT","RATE_DAILY","PERIOD"]
[339376983,1727511046625,-419.88426567,0.00076712,30]
[339376984,1727511046635,-151.0,0.00078,120]
[339376985,1727511046644,-400.0,0.00078299,2]
[339376986,1727511046654,-160.0,0.0008067,2]
[339376987,1727511046663,-151.0,0.00081452,120]
[339376988,1727511046673,-151.0,0.00082,120]
[339376989,1727511046682,-5000.0,0.00082191,120]
[339376990,1727511046692,-400.0,0.00083634,120]
[339376991,1727511046702,-151.0,0.00086,120]
[339376992,1727511046714,-1000.0,0.000863,120]
[339376993,1727511046723,-500.0,0.00087917,120]
[339376994,1727511046734,-227.69953393,0.00087917,120]
[339376995,1727511046743,-400.0,0.00088969,120]
[339376996,1727511046753,-800.0,0.0009,120]
[339376997,1727511046763,-800.0,0.0009,120]
[339376998,1727511046773,-800.0,0.0009,120]
[339376999,1727511046783,-800.0,0.0009,120]
[339377000,1727511046794,-800.0,0.0009,120]
[339377001,1727511046803,-800.0,0.0009,120]
[339377002,1727511046812,-205.0,0.0009,120]
[339377003,1727511046824,-333.0,0.00090027,120]
[339377004,1727511046833,-160.0,0.00091933,120]
[339377005,1727511046842,-400.0,0.00094304,120]
[339377006,1727511046852,-1000.0,0.000963,120]
[339377007,1727511046861,-500.0,0.0009863,30]
[339377008,1727511046871,-400.0,0.0009964,120]
[339377009,1727511046882,-693.06359623,0.000999,28]
[339377010,1727511046892,-2402.42,0.0009999,3]
[339377011,1727511046901,-2002.02,0.0009999,3]
[339377012,1727511046911,-1668.35,0.0009999,3]
[339377013,1727511046921,-19999.94,0.001,120]
[339377014,1727511046931,-151.0,0.001,120]
[339377015,1727511046943,-151.0,0.001,120]
[339377016,1727511046954,-152.0,0.00101377,120]
[339377017,1727511046965,-160.0,0.00103196,120]
[339377018,1727511046975,-400.0,0.00104975,120]
[339377019,1727511046986,-5000.0,0.00109589,120]
[339377020,1727511046997,-400.0,0.0011031,120]
[339377021,1727511047006,-160.0,0.0011446,120]
[339377022,1727511047016,-400.0,0.00115645,120]
[339377023,1727511047026,-500.0,0.00120547,30]
[339377024,1727511047036,-400.0,0.00120981,120]
[339377025,1727511047047,-160.0,0.00125723,120]
[339377026,1727511047056,-400.0,0.00126316,120]
[339377027,1727511047066,-3032.28796555,0.0013,61]
[339377028,1727511047078,-254219.0,0.0013,120]
[339377029,1727511047087,-400.0,0.00131651,120]
[339377030,1727511047097,-5000.0,0.00136986,120]
[339377031,1727511047108,-160.0,0.00136986,120]
[339377032,1727511047118,-400.0,0.00136986,120]
[339377033,1727511047129,-152.0,0.00137002,120]
[339377034,1727511047139,-500.0,0.00142465,30]
[339377035,1727511047148,-5000.0,0.00145,120]
[339377036,1727511047162,-1593.66129622,0.00150684,120]
[339377037,1727511047175,-1000.0,0.00150684,7]
[339377038,1727511047185,-1000.0,0.00150684,7]
[339377039,1727511047197,-1000.0,0.00150684,7]
[339377040,1727511047208,-500.0,0.00164383,30]
[339377041,1727511047218,-5000.0,0.00164383,120]
[339377042,1727511047227,-1000.0,0.00165752,7]
[339377043,1727511047240,-152.0,0.00172626,120]
[339377044,1727511047251,-1000.0,0.001863,120]
[339377045,1727511047261,-1000.0,0.0018767,7]
[339377046,1727511047271,-5000.0,0.0019178,120]
[339377047,1727511047282,-156.81181581,0.001925,120]
[339377048,1727511047294,-1000.0,0.001963,120]
[339377049,1727511047305,-161.044978,0.0020239,120]
[339377050,1727511047317,-2000.0,0.00205,120]
[339377051,1727511047331,-152.0,0.00208251,120]
[339377052,1727511047341,-1000.0,0.00209588,7]
[339377053,1727511047351,-5000.0,0.00219178,120]
[339377054,1727511047361,-1000.0,0.00231506,7]
[339377055,1727511047371,-152.0,0.00243875,120]
[339377056,1727511047382,-5000.0,0.00245,120]
[339377057,1727511047393,-5000.0,0.00246575,120]
[339377058,1727511047403,-412.2788661,0.00249748,120]
[339377059,1727511047413,-10000.0,0.0025,120]
[339377060,1727511047423,-1000.0,0.00253424,7]
[339377061,1727511047434,-1161.99,0.00254,60]
[339377062,1727511047446,-5837.66976571,0.00273963,60]
[339377063,1727511047456,-74952.7479812,0.00273963,60]
[339377064,1727511047468,-5000.0,0.00273972,120]
[339377065,1727511047478,-225.094162,0.00273973,120]
[339377066,1727511047488,-225.094162,0.00273973,120]
[339377067,1727511047497,-225.094162,0.00273973,120]
[339377068,1727511047508,-225.094162,0.00273973,120]
[339377069,1727511047517,-225.094162,0.00273973,120]
[339377070,1727511047527,-225.094162,0.00273973,120]
[339377071,1727511047537,-225.094162,0.00273973,120]
[339377072,1727511047546,-225.094162,0.00273973,120]
[339377073,1727511047557,-225.094162,0.00273973,120]
[339377074,1727511047568,-225.094162,0.00273973,120]
[339377075,1727511047579,-225.094162,0.00273973,120]
[339377076,1727511047590,-225.094162,0.00273973,120]
[339377077,1727511047600,-225.094162,0.00273973,120]
[339377078,1727511047610,-225.094162,0.00273973,120]
[339377079,1727511047620,-225.094162,0.00273973,120]
[339377080,1727511047632,-225.094162,0.00273973,120]
[339377081,1727511047644,-225.094162,0.00273973,120]
[339377082,1727511047653,-225.094162,0.00273973,120]
[339377083,1727511047663,-225.094162,0.00273973,120]
[339377084,1727511047673,-151.0,0.00273973,120]
[339377085,1727511047683,-151.0,0.00273973,120]
[339377086,1727511047693,-151.0,0.00273973,120]
[339377087,1727511047702,-151.0,0.00273973,120]
[339377088,1727511047712,-151.0,0.00273973,120]
[339377089,1727511047722,-151.0,0.00273973,120]
[339377090,1727511047732,-151.0,0.00273973,120]
[339377091,1727511047741,-151.0,0.00273973,120]
[339377092,1727511047750,-151.0,0.00273973,120]
[339377093,1727511047760,-151.0,0.00273973,120]
[339377094,1727511047771,-151.0,0.00273973,120]
[339377095,1727511047781,-151.0,0.00273973,120]
[339377096,1727511047791,-151.0,0.00273973,120]
[339377097,1727511047802,-151.0,0.00273973,120]
[339377098,1727511047812,-245.0,0.00273973,120]
[339377099,1727511047823,-582.55,0.00274,60]
[339377100,1727511047833,-1000.0,0.00275341,7]
[339377101,1727511047844,-1000.0,0.002863,120]
[339377102,1727511047854,-156.68661675,0.002886,120]
[339377103,1727511047864,-1000.0,0.002963,120]
[339377104,1727511047874,-1000.0,0.00297259,7]
[339377105,1727511047884,-10000.0,0.003,120]
[339377106,1727511047895,-152.09207119,0.003,120]
[339377107,1727511047906,-5000.0,0.00301369,120]
[339377108,1727511047917,-2000.0,0.00305,120]
[339377109,1727511047927,-1000.0,0.00319177,7]
[339377110,1727511047938,-5000.0,0.00328767,120]
[339377111,1727511047947,-1000.0,0.00341095,7]
[339377112,1727511047957,-5000.0,0.00345,120]
[339377113,1727511047968,-411.1995153,0.00349748,120]
[339377114,1727511047977,-412.2788661,0.0035057,120]
[339377115,1727511047987,-5000.0,0.00356164,120]
[339377116,1727511047999,-1000.0,0.00363013,7]
[339377117,1727511048009,-6410.74108283,0.0037499,61]
[339377118,1727511048019,-5837.66976571,0.0037499,90]
[339377119,1727511048029,-74952.7479812,0.0037499,90]
[339377120,1727511048038,-5000.0,0.00375,120]
[339377121,1727511048049,-10999.0,0.00375,120]
[339377122,1727511048059,-5000.0,0.00383561,120]
[339377123,1727511048070,-156.68661675,0.003848,120]
[339377124,1727511048082,-1000.0,0.0038493,7]
[339377125,1727511048091,-1161.99,0.00385,60]
[339377126,1727511048101,-1000.0,0.003863,120]
[339377127,1727511048111,-582.55,0.00387,60]
[339377128,1727511048122,-1000.0,0.003963,120]
[339377129,1727511048132,-412.2788661,0.00398573,120]
[339377130,1727511048142,-999.0,0.00399999,120]
[339377131,1727511048152,-10000.0,0.004,120]
[339377132,1727511048162,-999.0,0.00401095,120]
[339377133,1727511048172,-999.0,0.00402191,120]
[339377134,1727511048182,-999.0,0.00403287,120]
[339377135,1727511048192,-999.0,0.00404383,120]
[339377136,1727511048201,-5000.0,0.00405,120]
[339377137,1727511048210,-5000.0,0.00405,120]
[339377138,1727511048220,-999.0,0.00405479,120]
[339377139,1727511048230,-999.0,0.00406575,120]
[339377140,1727511048241,-1000.0,0.00406848,7]
[339377141,1727511048251,-999.0,0.0040767,120]
[339377142,1727511048260,-999.0,0.00408766,120]
[339377143,1727511048270,-999.0,0.00409862,120]
[339377144,1727511048280,-5837.66976571,0.00410948,120]
[339377145,1727511048292,-74952.7479812,0.00410948,120]
[339377146,1727511048302,-999.0,0.00410958,120]
[339377147,1727511048312,-5000.0,0.00410958,120]
[339377148,1727511048322,-999.0,0.00412054,120]
[339377149,1727511048333,-884.32,0.0041315,120]
[339377150,1727511048342,-1000.0,0.00428766,7]
[339377151,1727511048354,-5000.0,0.00438356,120]
[339377152,1727511048366,-1161.99,0.00439,60]
[339377153,1727511048378,-18257.70888382,0.004444,120]
[339377154,1727511048388,-5000.0,0.00445,120]
[339377155,1727511048398,-582.55,0.00445,60]
[339377156,1727511048407,-412.2788661,0.0045057,120]
[339377157,1727511048419,-1000.0,0.00450684,7]
[339377158,1727511048431,-5000.0,0.00465753,120]
[339377159,1727511048441,-293.82547854,0.00472602,7]
[339377160,1727511048452,-156.68661675,0.004811,120]
[339377161,1727511048462,-1000.0,0.004863,120]
[339377162,1727511048473,-5000.0,0.0049315,120]
[339377163,1727511048483,-568.6,0.004963,120]
[339377164,1727511048494,-100000.0,0.0049999,120]
[339377165,1727511048506,-10000.0,0.005,120]
[339377166,1727511048516,-8000.0,0.005,120]
[339377167,1727511048525,-300.0,0.005,120]
[339377168,1727511048536,-254.6980047,0.00506824,120]
[339377169,1727511048546,-779.1031867,0.00506824,120]
[339377170,1727511048556,-824.5577322,0.00506824,120]
[339377171,1727511048566,-412.2788661,0.0050782,120]
[339377172,1727511048578,-412.2788661,0.0050782,120]
[339377173,1727511048587,-412.2788661,0.0050782,120]
[339377174,1727511048597,-5837.66976571,0.00520537,120]
[339377175,1727511048607,-74952.7479812,0.00520537,120]
[339377176,1727511048618,-5000.0,0.00520547,120]
[339377177,1727511048628,-261.46,0.00521,120]
[339377178,1727511048638,-5000.0,0.00547945,120]
[339377179,1727511048648,-500.0,0.00547945,120]
[339377180,1727511048659,-447.13411816,0.00547945,120]
[339377181,1727511048669,-5837.66976571,0.0054999,120]
[339377182,1727511048680,-74952.7479812,0.0054999,120]
[339377183,1727511048690,-19658.73938682,0.0055,120]
[339377184,1727511048701,-8835.84582843,0.0055,120]
[339377185,1727511048712,-1000.0,0.00555456,120]
[339377186,1727511048722,-5000.0,0.00575342,120]
[339377187,1727511048731,-156.81181581,0.005776,120]
[339377188,1727511048742,-500.0,0.0057998,120]
[339377189,1727511048753,-1161.99,0.0058,60]
[339377190,1727511048763,-1000.0,0.005863,120]
[339377191,1727511048773,-582.55,0.00587,60]
[339377192,1727511048783,-4000.0,0.006,60]
[339377193,1727511048794,-10000.0,0.006,120]
[339377194,1727511048804,-5000.0,0.00602739,120]
[339377195,1727511048813,-5837.66976571,0.0060999,120]
[339377196,1727511048824,-74952.7479812,0.0060999,120]
[339377197,1727511048834,-10566.691605,0.0061,120]
[339377198,1727511048845,-4000.0,0.0063,60]
[339377199,1727511048856,-5000.0,0.00630136,120]
[339377200,1727511048867,-9189.68278069,0.00639,120]
[339377201,1727511048877,-412.2788661,0.00639821,120]
[339377202,1727511048887,-2000.0,0.0065,90]
[339377203,1727511048898,-5000.0,0.00657534,120]
[339377204,1727511048907,-156.68661675,0.006739,120]
[339377205,1727511048917,-2408.7872583,0.00684931,120]
[339377206,1727511048927,-1000.0,0.006863,120]
[339377207,1727511048937,-166880.7454577,0.00688,120]
[339377208,1727511048947,-121353.74741,0.00688,60]
[339377209,1727511048957,-5837.66976571,0.0069055,120]
[339377210,1727511048967,-74952.7479812,0.0069055,120]
[339377211,1727511048978,-39894.52749079,0.0069056,120]
[339377212,1727511048988,-11675.3395314,0.0069065,120]
[339377213,1727511048998,-74952.7479812,0.0069065,120]
[339377214,1727511049008,-2023.4,0.00691,60]
[339377215,1727511049018,-5837.66976571,0.00697969,120]
[339377216,1727511049029,-149905.495962,0.00699495,120]
[339377217,1727511049039,-5837.66976571,0.0069999,120]
[339377218,1727511049049,-150.0,0.007,120]
[339377219,1727511049059,-168.439999,0.007,120]
[339377220,1727511049070,-1761.35995853,0.007,120]
[339377221,1727511049082,-9493.46465,0.007,120]
[339377222,1727511049093,-150.0,0.00701,120]
[339377223,1727511049103,-200.0,0.00702,120]
[339377224,1727511049112,-153.0,0.00720641,120]
[339377225,1727511049122,-153.0,0.00720641,120]
[339377226,1727511049132,-153.0,0.00720641,120]
[339377227,1727511049143,-153.0,0.00720641,120]
[339377228,1727511049153,-153.0,0.00720641,120]
[339377229,1727511049168,-153.0,0.00721638,120]
[339377230,1727511049178,-153.0,0.00721638,120]
[339377231,1727511049187,-153.0,0.00721638,120]
[339377232,1727511049198,-153.0,0.00721638,120]
[339377233,1727511049209,-153.0,0.00721638,120]
[339377234,1727511049219,-153.0,0.00722622,120]
[339377235,1727511049229,-153.0,0.00722622,120]
[339377236,1727511049241,-153.0,0.00722622,120]
[339377237,1727511049251,-153.0,0.00722622,120]
[339377238,1727511049261,-153.0,0.00722622,120]
[339377239,1727511049272,-153.0,0.0072363,120]
[339377240,1727511049282,-153.0,0.0072363,120]
[339377241,1727511049292,-153.0,0.0072363,120]
[339377242,1727511049302,-153.0,0.0072363,120]
[339377243,1727511049312,-153.0,0.0072363,120]
[339377244,1727511049322,-153.0,0.00724628,120]
[339377245,1727511049333,-153.0,0.00724628,120]
[339377246,1727511049344,-153.0,0.00724628,120]
[339377247,1727511049355,-153.0,0.00724628,120]
[339377248,1727511049365,-153.0,0.00724628,120]
[339377249,1727511049375,-153.0,0.00725621,120]
[339377250,1727511049385,-153.0,0.00725621,120]
[339377251,1727511049395,-153.0,0.00725621,120]
[339377252,1727511049405,-300000.0,0.00735,120]
[339377253,1727511049416,-500.0,0.0074747,120]
[339377254,1727511049426,-1000.0,0.0074747,120]
[339377255,1727511049437,-894.75524918,0.00749999,120]
[339377256,1727511049447,-21294.59993527,0.00749999,120]
[339377257,1727511049517,-1500.0,0.0076,120]
[339377258,1727511049528,-263.15789474,0.0076,120]
[339377259,1727511049538,-259.74025974,0.0077,120]
[339377260,1727511049549,-2000.0,0.0077,120]
[339377261,1727511049560,-156.68661675,0.0077,120]
[339377262,1727511049692,-2023.4,0.0077,60]
[339377263,1727511049702,-1500.0,0.0078,120]
[339377264,1727511049712,-256.41025641,0.0078,120]
[339377265,1727511049722,-1000.0,0.007863,120]
[339377266,1727511049732,-670.7284,0.007882,117]
[339377267,1727511049740,-156.68661675,0.007894,120]
[339377268,1727511049750,-423.86825116,0.007999,28]
[339377281,1727511079595,161.92,0.000266,31]
[339377282,1727511079650,161.92,0.000266,31]
[339377283,1727511079704,161.92,0.000266,31]
[339377284,1727511079786,161.92,0.000266,31]
[339377285,1727511079823,161.92,0.000266,31]
[339377286,1727511079882,161.92,0.000266,31]
[339377287,1727511079973,161.92,0.000266,31]
[339377288,1727511080077,161.92,0.000266,31]
[339377289,1727511080141,161.92,0.000266,31]
[339377290,1727511080198,161.92,0.000266,31]
[339377291,1727511080280,161.92,0.000266,31]
[339377292,1727511080314,161.92,0.000304,31]
[339377293,1727511080366,161.92,0.000304,31]
[339377294,1727511080429,161.92,0.000304,31]
[339377295,1727511080487,83.99005781,0.000266,31]
[339377296,1727511080516,77.92994219,0.000266,31]
[339377297,1727511080557,161.92,0.000304,31]
[339377298,1727511080611,161.92,0.000304,31]
[339377299,1727511080668,161.92,0.000304,31]
[339377300,1727511080748,161.92,0.000304,31]
[339377301,1727511080794,161.92,0.000304,31]
[339377302,1727511080831,161.92,0.000304,31]
[339377303,1727511080908,161.92,0.000304,31]
[339377304,1727511080990,161.92,0.000304,31]
[339377305,1727511081030,161.92,0.000304,31]
[339377306,1727511081099,161.92,0.000304,31]
[339377307,1727511081153,161.92,0.000304,31]
[339377308,1727511081214,161.92,0.000304,31]
[339377309,1727511081276,161.92,0.000304,31]
[339377310,1727511081335,161.92,0.000304,31]
[339377311,1727511081387,161.92,0.000304,31]
[339377312,1727511081457,161.92,0.000304,31]
[339377313,1727511081523,161.92,0.000304,31]
[339377314,1727511081580,161.92,0.000304,31]
[339377315,1727511081633,161.92,0.000304,31]
[339377316,1727511081719,161.92,0.000304,31]
[339377317,1727511081753,161.92,0.000304,31]
[339377318,1727511081816,161.92,0.000341,31]
[339377319,1727511081860,6.16981043,0.000341,31]
[339377320,1727511081887,155.75018957,0.000341,31]
[339377321,1727511081936,161.92,0.000341,31]
[339377322,1727511082000,161.92,0.000341,31]
[339377323,1727511082062,161.92,0.000341,31]
[339377324,1727511082136,161.92,0.000341,31]
[339377325,1727511082181,161.92,0.000341,31]
[339377326,1727511082254,161.92,0.000341,31]
[339377327,1727511082304,161.92,0.000341,31]
[339377328,1727511082375,161.92,0.000341,31]
[339377329,1727511082436,161.92,0.000341,31]
[339377330,1727511082493,161.92,0.000341,31]
[339377331,1727511082552,161.92,0.000341,31]
[339377332,1727511082610,161.92,0.000341,31]
[339377333,1727511082675,161.92,0.000341,31]
[339377334,1727511082727,161.92,0.000341,31]
[339377335,1727511082800,161.92,0.000341,31]
[339377336,1727511082845,161.92,0.000341,31]
[339377337,1727511082909,161.92,0.000341,31]
[339377338,1727511082975,161.92,0.000341,31]
[339377339,1727511083035,161.92,0.000341,31]
[339377340,1727511083092,161.92,0.000341,31]
[339377341,1727511083155,27.09911816,0.000341,31]
[339377342,1727511083184,134.82088184,0.000341,31]
[339377343,1727511083216,161.92,0.000341,31]
[339377344,1727511115595,3250.35349722,0.000235,2]
[339377345,1727511115621,3497.55536023,0.000235,2]
[339377346,1727511115643,3301.891006,0.000235,2]
[339377347,1727511115664,227.4059011,0.000235,2]
[339377348,1727511115685,483.19301876,0.000235,2]
[339377358,1727511571151,-197.822133,0.00034932,2]
[339377359,1727511571179,-400.0,0.00035616,2]
[339377360,1727511571204,-400.0,0.00037899,2]
[339377361,1727511571233,-161.92,0.000379,31]
[339377362,1727511571266,-161.92,0.000379,31]
[339377363,1727511571298,-161.92,0.000379,31]
[339377364,1727511571325,-161.92,0.000379,31]
[339377365,1727511571353,-161.92,0.000379,31]
[339377366,1727511571380,-161.92,0.000379,31]
[339377367,1727511571406,-161.92,0.000379,31]
[339377368,1727511571436,-161.92,0.000379,31]
[339377369,1727511571462,-161.92,0.000379,31]
[339377370,1727511571490,-161.92,0.000379,31]
[339377371,1727511571520,-161.92,0.000379,31]
[339377372,1727511571547,-161.92,0.000379,31]
[339377373,1727511571575,-161.92,0.000379,31]
[339377374,1727511571602,-161.92,0.000379,31]
[339377375,1727511571629,-161.92,0.000379,31]
[339377376,1727511571656,-161.92,0.000379,31]
[339377377,1727511571684,-161.92,0.000379,31]
[339377378,1727511571710,-161.92,0.000379,31]
[339377379,1727511571736,-161.92,0.000379,31]
[339377380,1727511571764,-161.92,0.000379,31]
[339377381,1727511571791,-161.92,0.000379,31]
[339377382,1727511571818,-161.92,0.000379,31]
[339377383,1727511571847,-161.92,0.000379,31]
[339377384,1727511571876,-161.92,0.000379,31]
[339377385,1727511571901,-197.822133,0.00040303,2]
[339377386,1727511571924,-400.0,0.00040952,2]
[339377387,1727511571952,-161.92,0.000417,31]
[339377388,1727511571978,-161.92,0.000417,31]
[339377389,1727511572004,-161.92,0.000417,31]
[339377390,1727511572030,-161.92,0.000417,31]
[339377391,1727511572056,-161.92,0.000417,31]
[339377392,1727511572082,-161.92,0.000417,31]
[339377393,1727511572111,-161.92,0.000417,31]
[339377394,1727511572138,-161.92,0.000417,31]
[339377395,1727511572165,-161.92,0.000417,31]
[339377396,1727511572194,-161.92,0.000417,31]
[339377397,1727511572222,-161.92,0.000417,31]
[339377398,1727511572248,-161.92,0.000417,31]
[339377399,1727511572274,-161.92,0.000417,31]
[339377400,1727511572301,-161.92,0.000417,31]
[339377401,1727511572330,-161.92,0.000417,31]
[339377402,1727511572357,-161.92,0.000417,31]
[339377403,1727511572379,-197.822133,0.00045674,120]
[339377404,1727511572403,-400.0,0.00046287,2]
[339377405,1727511572451,41329.733601,0.0005,120]
[339377407,1727511641884,-5086.0,0.0005,120]
[339377410,1727511723657,-300.0,0.00041699,5]
[339377411,1727511723684,-168.04,0.000417,31]
[339377412,1727511723711,-168.04,0.000417,31]
[339377413,1727511723740,-168.04,0.000417,31]
[339377414,1727511723766,-168.04,0.000417,31]
[339377415,1727511723809,-168.04,0.000417,31]
[339377416,1727511723839,-168.04,0.000417,31]
[339377417,1727511723862,-2986.444266,0.0005,120]
[339377418,1727511723887,-6706.68839953,0.0005,120]
[339377420,1727511889654,-155.02308535,0.00050945,10]
[339377421,1727511889678,-197.822133,0.00051045,120]
[339377422,1727511889711,-400.0,0.00051622,2]
[339377423,1727511889733,-525.0,0.00055211,120]
[339377424,1727511889755,-150.0,0.00055211,120]
[339377425,1727511889778,-1217.0,0.00055211,120]
[339377426,1727511889800,-197.822133,0.00056417,120]
[339377427,1727511889823,-400.0,0.00056957,2]
[339377428,1727511889845,-201.210049,0.00059625,2]
[339377429,1727511918631,-201.210049,0.0006031,2]
[339377430,1727511918657,-177.189,0.0006031,120]
[339377431,1727511918682,-201.210049,0.00060995,2]
[339377432,1727511918707,-197.822133,0.00061788,120]
[339377433,1727511918731,-400.0,0.00062293,2]
[339377434,1727511918755,-152.0,0.00065753,120]
[339377435,1727511918778,-430.50407554,0.00065999,30]
[339377436,1727511918801,-502.18884846,0.00065999,120]
[339377437,1727511918826,-161.044978,0.00067094,120]
[339377438,1727511918850,-197.822133,0.00067159,120]
[339377439,1727511918874,-400.0,0.00067628,2]
[339377440,1727511918898,-292.707894,0.00068602,30]
[339377441,1727511918922,-1911.149924,0.00069,120]
[339377442,1727511918948,-170.125985,0.00071809,2]
[339377443,1727511918973,-170.125985,0.00072276,2]
[339377444,1727511918998,-197.822133,0.00072531,120]
[339377445,1727511919024,-170.125985,0.00072744,2]
[339377446,1727511919054,-400.0,0.00072963,2]
[339377447,1727511919081,-170.125985,0.00073212,2]
[339377448,1727511919108,-170.125985,0.0007368,2]
[339377449,1727511919135,-170.125985,0.00074147,2]
[339377450,1727511919160,-170.125985,0.00074615,2]
[339377451,1727511919186,-170.125985,0.00075083,2]
[339377452,1727511919214,-170.125985,0.0007555,2]
[339377453,1727511919239,-197.822133,0.00077902,120]
[339377454,1727511919277,-400.0,0.00078299,2]
[339377455,1727511919302,-1953.706396,0.0008,120]
[339377456,1727511919335,-5000.0,0.00082191,120]
[339377457,1727511919360,-197.822133,0.00083273,120]
[339377458,1727511919384,-400.0,0.00083634,120]
[339377459,1727511919409,-177.19,0.00085155,120]
[339377460,1727511919434,-1000.0,0.000863,120]
[339377461,1727511919457,-197.822133,0.00088645,120]
[339377462,1727511919482,-400.0,0.00088969,120]
[339377463,1727511919506,-197.822133,0.00094016,120]
[339377464,1727511919532,-400.0,0.00094304,120]
[339377465,1727511919557,-500.0,0.00096298,120]
[339377466,1727511919583,-259.523163,0.00096299,120]
[339377467,1727511919607,-197.822133,0.00099387,120]
[339377468,1727511919633,-400.0,0.0009964,120]
[339377469,1727511919666,30766.664694,0.001,120]
[339377471,1727512003777,-172.008281,0.00034932,2]
[339377472,1727512003802,-383.657801,0.00035616,2]
[339377473,1727512003828,-383.657801,0.00040952,2]
[339377474,1727512003855,-383.657801,0.00046287,2]
[339377475,1727512003879,-172.008281,0.00047688,120]
[339377476,1727512004325,48505.010035,0.0005,120]
[339377477,1727512047095,-252.0,0.0005,120]
[339377478,1727512047122,-225.76868957,0.00051622,2]
[339377479,1727512049111,-157.88911143,0.00051622,2]
[339377480,1727512049133,-383.657801,0.00056957,2]
[339377481,1727512049155,-172.008281,0.00060445,120]
[339377482,1727512049177,-383.657801,0.00062293,2]
[339377483,1727512049198,-152.0,0.00065753,120]
[339377484,1727512049220,-383.657801,0.00067628,2]
[339377485,1727512049242,-383.657801,0.00072963,2]
[339377486,1727512049264,-172.008281,0.00073202,120]
[339377487,1727512049287,-383.657801,0.00078299,2]
[339377488,1727512049309,-500.0,0.00079999,120]
[339377489,1727512049331,-383.657801,0.00083634,120]
[339377490,1727512049354,-172.008281,0.00085959,120]
[339377491,1727512049376,-383.657801,0.00088969,120]
[339377492,1727512049397,-383.657801,0.00094304,120]
[339377493,1727512049420,-5000.0,0.000945,120]
[339377494,1727512049442,-172.008281,0.00098716,120]
[339377495,1727512049463,-1641.58576426,0.00099,120]
[339377496,1727512053093,-3762.65484468,0.00099,120]
[339377498,1727512081678,1011.51019523,0.000348,2]
[339377501,1727512109580,-1470.44255,0.0003876,30]
[339377502,1727512109607,-18529.55745,0.0003876,120]
[339377504,1727512147146,-1003.4943876,0.0003,2]
[339377505,1727512147168,-928.30275652,0.000328,120]
[339377562,1727512235256,-435.8519809,0.00037519,60]
[339377563,1727512235266,-876.1237281,0.0003866,2]
[339377570,1727512239233,-72.37665517,0.0003866,2]
[339377571,1727512239243,-440.34,0.000387,120]
[339377572,1727512239252,-500.0,0.00038759,7]
[339377573,1727512239262,-500.0,0.00038759,7]
[339377574,1727512239275,-500.0,0.00038759,7]